Cogmind - Beta 13 @@@ ROGUE MODE // 2024.04.28 @ 14:37:42 Player: Barbarossa Result: Destroyed by G-34 Mercenary with Small Laser Performance ------------- Evolutions (0) 0 Regions Visited (1) 200 Robots Destroyed (14) 70 Value Destroyed (395) 395 Prototype IDs (0) 0 Alien Tech Used (0) 0 Bonus (0) 0 TOTAL SCORE: 665 Bonus ------- None Cogmind --------- Core Integrity 0/250 Matter 285/300 Energy 242/250 System Corruption 0% Temperature Warm (178) Movement Rolling (100) Location -10/Materials Parts ------- > --- POWER (1) -------- Ion Engine > --- PROPULSION (2) --- Compact Wheel Compact Wheel > --- UTILITY (2) ------ Small Storage Unit > --- WEAPON (2) ------- Medium Laser Small Laser > --- INVENTORY (8) ---- Light Ion Engine Light Treads Light Treads Aluminum Leg Compact Wheel Heat Sink Peak State ------------ > --- POWER ------------ Ion Engine > --- PROPULSION ------- Aluminum Leg Aluminum Leg > --- UTILITY ---------- Small Storage Unit > --- WEAPON ----------- Assault Rifle Light Assault Rifle > --- INVENTORY -------- Light Ion Engine Light Treads Light Treads Wheel Wheel Medium Laser [Rating: 6] Favorites ----------- Power Ion Engine Engine Ion Engine Propulsion Wheel Leg Aluminum Leg Wheel Wheel Utility Small Storage Unit Storage Small Storage Unit Weapon Assault Rifle Energy Gun Medium Laser Ballistic Gun Assault Rifle Build | -11 -10 ------- Run | Yrd Mat Slots Evolved . | . . Power . | . . Propulsion . | . . Utility . | . . Weapon . | . . Parts Attached 8 | . 8 Power 2 | . 2 Engine 2 | . 2 Core . | . . Reactor . | . . Propulsion 4 | . 4 Treads . | . . Leg . | . . Wheel 4 | . 4 Hover . | . . Flight . | . . Utility . | . . Device . | . . Storage . | . . Processor . | . . Hackware . | . . Protection . | . . Artifact . | . . Weapon 2 | . 2 Energy Gun 2 | . 2 Energy Cannon . | . . Ballistic Gun . | . . Ballistic Cannon . | . . Launcher . | . . Special Weapon . | . . Impact Weapon . | . . Slashing Weapon . | . . Piercing Weapon . | . . Special Melee Weapon . | . . Unidentified Prototypes . | . . Parts Lost 6 | . 6 Power 2 | . 2 Propulsion 2 | . 2 Utility . | . . Weapon 2 | . 2 Highest Loss Streak 5 | . 5 To Critical Strikes . | . . Average Slot Usage (%) 78 | . 78 Engine 10 | . 10 Wheel 25 | . 25 Storage 14 | . 14 Energy Gun 6 | . 6 Ballistic Gun 22 | . 22 Naked Turns . | . . Heaviest Build 13 | 13 13 Greatest Support 32 | 20 32 Greatest Overweight (x) 2 | . 2 Average Overweight (x) . | . . Largest Inventory Capacity 8 | 8 8 Average Capacity 8 | 8 8 Most Carried 8 | 7 8 Average Carried 6 | 6 6 Final Capacity 8 | 8 8 Final Carried 7 | 7 6 Class Distribution -------------------- 86% | Mutant 13% | Scavenger-Mutant Dominant Class ---------------- Mutant | -10/Materials Resources | -11 -10 ----------- Run | Yrd Mat Matter Collected 447 | 200 247 Remotely . | . . Salvage Created 634 | 86 548 Parts 25 | 1 24 Haulers Intercepted . | . . Recyclers Shooed 2 | . 2 Parts Field Recycled . | . . Retrieved Matter . | . . Parts Self-Destructed . | . . Prevented . | . . Kills | -11 -10 ------- Run | Yrd Mat Combat Hostiles Destroyed 10 | . 10 Guns 10 | . 10 Classes Destroyed 3 | 1 2 Worker 1 | . 1 Recycler 3 | 1 2 Grunt 10 | . 10 Best Kill Streak 3 | 1 3 Combat Bots Only 3 | . 3 Max Kills in Single Turn 2 | 1 2 Gunslinging 1 | . 1 Exploded . | . . Melee . | . . Uniques/NPCs Destroyed . | . . Combat | -11 -10 -------- Run | Yrd Mat Hostile Shots Fired 98 | . 98 Missed 28 | . 28 Damage Taken 852 | . 852 Core 254 | . 254 Absorbed by Shields . | . . Core Remaining (%) 100 | 100 . Volleys Fired 64 | 5 59 Largest 2 | 2 2 Hottest 90 | 40 90 Shots Fired 127 | 10 117 Gun 127 | 10 117 Cannon . | . . Launcher . | . . Special . | . . Kinetic 104 | 10 94 Thermal 23 | . 23 Explosive . | . . Electromagnetic . | . . Robot Hit Streak 14 | 4 14 Robot Miss Streak 4 | 4 4 Penetration Max . | . . Secondary Targets 3 | . 3 Max Gunslinging Chain 1 | . 1 Shots Hit Robots 88 | 6 82 Core Hits 33 | 3 30 Critical Kills 1 | . 1 Critical Parts Destroyed . | . . Critical Strikes 3 | . 3 Burn 2 | . 2 Destroy 1 | . 1 Melee Attacks . | . . Impact . | . . Slashing . | . . Piercing . | . . Sneak Attacks . | . . Combat Hostiles . | . . Follow-up Attacks . | . . Damage Inflicted 963 | 81 882 Guns 963 | 81 882 Cannons . | . . Explosions . | . . Melee . | . . Ramming . | . . Kinetic 739 | 81 658 Thermal 224 | . 224 Explosive . | . . Electromagnetic . | . . Impact . | . . Slashing . | . . Piercing . | . . Highest Corruption . | . . Average Corruption . | . . Corruption Purged . | . . Corruption Blocked . | . . Overload Shots . | . . Overflow Damage . | . . Projectiles . | . . Explosions . | . . Melee . | . . Knockbacks . | . . Impact . | . . Kinetic . | . . Secondary . | . . Self-Inflicted Damage . | . . Shots . | . . Rammed . | . . Targets Rammed . | . . Kicked . | . . Crushed . | . . Highest Temperature 214 | . 214 Average Temperature 57 | . 57 Received Heat Transfer 492 | . 492 Siege Activations . | . . Robots Corrupted . | . . Combat Hostiles . | . . Parts Fried . | . . Impact Corruptions . | . . Robots Melted . | . . Combat Hostiles . | . . Parts Melted 2 | . 2 Heat Transferred 743 | . 743 Parts Sabotaged . | . . Parts Stolen . | . . Parts Stripped . | . . Power Chain Reactions . | . . Alert | -11 -10 ------- Run | Yrd Mat Peak Influence 258 | 5 258 Initial 3 | . 3 Average 107 | 1 116 Maximum Alert Level 1 | . 1 Low Security (%) 84 | 100 83 Level 1 15 | . 16 Level 2 . | . . Level 3 . | . . Level 4 . | . . Level 5 . | . . High Security . | . . Max Security . | . . Squads Dispatched 2 | . 2 Investigation . | . . Extermination . | . . Reinforcement 2 | . 2 Assault . | . . Garrison . | . . Intercept . | . . Searches Triggered . | . . Construction Impeded . | . . Haulers Reinforced . | . . Active Scanning Responses . | . . Cargo Convoy Interrupts . | . . Stealth | -11 -10 --------- Run | Yrd Mat Distress Signals 1 | . 1 Communications Jammed . | . . Distress Signals . | . . Times Spotted 18 | . 18 Peak Tracking Total 5 | . 5 Tactical Retreats . | . . Traps | -11 -10 ------- Run | Yrd Mat Traps Triggered . | . . Indirectly . | . . Trap Hack Attempts . | . . Triggered . | . . Disarmed . | . . Reprogrammed . | . . Reused . | . . Traps Extracted . | . . Installed . | . . Triggered . | . . Machines | -11 -10 ---------- Run | Yrd Mat Machines Disabled 1 | . 1 Max in Single Turn 1 | . 1 Machines Repaired . | . . Machines Dismantled . | . . Machines Sabotaged . | . . Overloaded Fab Kills . | . . Hacking | -11 -10 --------- Run | Yrd Mat Machines Accessed . | . . Terminals . | . . Fabricators . | . . Repair Stations . | . . Recycling Units . | . . Scanalyzers . | . . Garrison Access . | . . Total Hacks . | . . Successful . | . . Failed . | . . Catastrophic . | . . Database Lockouts . | . . Manual . | . . Terminals . | . . Fabricators . | . . Repair Stations . | . . Recycling Units . | . . Scanalyzers . | . . Garrison Access . | . . Terminal Hacks . | . . Fabricator Hacks . | . . Repair Station Hacks . | . . Recycling Unit Hacks . | . . Scanalyzer . | . . Garrison Access Hacks . | . . Unauthorized Hacks . | . . Terminals . | . . Fabricators . | . . Repair Stations . | . . Recycling Units . | . . Scanalyzers . | . . Garrison Access . | . . Data Cores Recovered . | . . Used . | . . Hacking Detections . | . . Full Trace Events . | . . Feedback Events . | . . Feedback Blocked . | . . Robot Schematics Acquired . | . . Robots Built . | . . Authchips . | . . Time . | . . Total Robot Build Rating . | . . Part Schematics Acquired . | . . Parts Built . | . . Authchips . | . . Time . | . . Total Part Build Rating . | . . Parts Repaired . | . . Time . | . . Parts Recycled . | . . Recycled Matter . | . . Retrieved Matter . | . . Retrieved Components . | . . Parts Scanalyzed . | . . Part Schematics Acquired . | . . Parts Damaged . | . . Bothacking | -11 -10 ------------ Run | Yrd Mat Used RIF Installer . | . . Robots Hacked . | . . Non-combat . | . . Combat . | . . Robot Hacks Applied . | . . Relay Couplers Released . | . . Fabnet Peak Effective % . | . . Robots Rewired . | . . Allies Hacked . | . . Hacks Repelled . | . . Allies | -11 -10 -------- Run | Yrd Mat Total Allies . | . . Largest Group . | . . Highest-Rated Group . | . . Highest-Rated Ally . | . . Total Orders . | . . Ally Attacks . | . . Total Damage . | . . Kills . | . . Allies Corrupted . | . . Allies Melted . | . . Intel | -11 -10 ------- Run | Yrd Mat Robot Analysis Total . | . . Derelict Logs Recovered . | . . Drone Launches . | . . Drone Recoveries . | . . Exploration | -11 -10 ------------- Run | Yrd Mat Turns Passed 385 | 29 356 Spaces Moved 214 | 12 202 Core 9 | . 9 Treads . | . . Legs 12 | 12 . Wheels 193 | . 193 Hover . | . . Flight . | . . Fastest Speed 80 | 120 80 Average Speed 87 | 120 85 Slowest Speed 150 | 120 150 Overloaded Moves . | . . Propulsion Burnouts . | . . Robots Hopped . | . . Cave-ins Triggered . | . . Exploration Rate (%) 20 | 2 38 Regions Visited 1 Branch Regions . Pre-discovered Areas . | . . Known Exits Taken . | . . Unknown Exits Taken 1 | 1 . Scrap Searched . | . . Spaces Dug . | . . Terrain Destroyed . | . . Melee . | . . Projectile . | . . AOE . | . . Terrain Rammed . | . . Walls Destroyed . | . . Machines Disabled . | . . Actions | -11 -10 --------- Run | Yrd Mat Total 295 | 17 278 Wait 3 | . 3 Move 213 | 11 202 Hop . | . . Pick Up 6 | 1 5 Fast Attach 1 | . 1 Attach 5 | . 5 Detach . | . . Swap 2 | . 2 Drop 1 | . 1 Fire 64 | 5 59 Melee . | . . Ram . | . . Kick . | . . Crush . | . . Escape Stasis . | . . Rewire . | . . Trap . | . . Miscellaneous . | . . Route ------- -11/Scrapyard -10/Materials (discovered 1 exit: [*Mat]) History --------- Turn | Location | Event 1 | -11/Scrapyard | Discovered new exit (range 0) 30 | -11/Scrapyard | Entered Materials 304 | -10/Materials | Core integrity fell below 50% 319 | -10/Materials | Core integrity fell below 20% 334 | -10/Materials | Build established: Mutant 345 | -10/Materials | Lost 5 parts (1p2n2w) 372 | -10/Materials | Discovered new exit (range 3) 386 | -10/Materials | Destroyed by G-34 Mercenary with Small Laser Last Messages --------------- 00304_ G-34 Mercenary suffers critical hit (Burn). 00310_ Assault Rifle destroyed. 00313_ Wheel destroyed. 00314_ Lgt. Ion Engine destroyed. 00320_ G-34 Mercenary suffers critical hit (Burn). 00320_ Aluminum Leg melted. 00320_ G-34 Mercenary destroyed. 00326_ Switching to secondary target: G-34 Mercenary. 00326_ G-34 Mercenary destroyed. 00332_ Acquired Heat Sink. 00333_ Acquired 25 matter. 00343_ Acquired Ion Engine. 00350_ Acquired Com. Wheel. 00359_ Acquired 15 matter. 00360_ R-06 Scavenger collects Aluminum Leg. 00372_ EXIT=FOUND 00382_ G-34 Mercenary destroyed. Map ----- +----------------------------------------------------+ | "" """ ############# ## #??????? | | "" """ #???????????# #########??????? | | "" """% #???????????# #??????????????? | | "" """ #???????????# #??????????????? | | #???????????# #??????????????? | | % #???????????# #???##########?? | | "" """= =#???????????# #???# """ """ ?? | | "" """ ! ############# #???# """ """ #? | | " """ ##### """ """ #? | | " " # #? | | %% + ] #? | | % ! # #? | | % # #? | | +######## """ ** # #? | | ???????# """ * #+#########? | | "???????# """ * #??????? | | "???????# #??????? | | ????????# #??????? | | ????????# r###+##+#######? | | ????????# ######### # = % #? | | ????????# #???????# # ! %= #? | | ????????# #???????# # #? | | ????????# +???????# # #? | | ???????? ^#???????# # #? | | ???????? #???????# # #? | | ???????? #???????# @##############? | | ????????###+##???????# * ????????????? | | ?????????????????????# =%< #??????????? | | ?????????????????????# #??????????? | | ?????????????????????#######g#??????????? | | ???????????????????????????? #??????????? | | ?????????????????????????????#??????????? | | ????????????????????????????????????????? | | ????????????????????????????????????????? | | ????????????????????????????????????????? | | ????????????????????????????????????????? | | ????????????????????????????????????????? | | ????????????????????????????????????????? | | ????????????????????????????????????????? | | ????????????????????????????????????????? | | ????????????????????????????????????????? | | ????????????????????????????????????????? | | ????????????????????????????????????????? | | ????????????????????????????????????????? | | ????????????????????????????????????????? | | ????????????????????????????????????????? | | ????????????????????????????????????????? | | ????????????????????????????????????????? | | ????????????????????????????????????????? | | ????????????????????????????????????????? | +----------------------------------------------------+ Best States ------------- Heat Dissipation 25 Energy Generation 10 Energy Capacity 250 Matter Stores 300 Matter Capacity 300 Sight Range 16 Terrain Scan Density 10 Evasion (%) 45 Item Schematics ----------------- None Robot Schematics ------------------ None Fabricated ------------ Nothing Alien Tech Used ----------------- None Achievements -------------- None Challenges ------------ None Game ------ Seed PortableResetDerivative Manual? 0 Play Time 00:05:27 Cumulative 130.6 hours Start 2024.04.28 @ 14:34:51 End 2024.04.28 @ 14:37:42 Sessions 1 Manual Loads 0 Difficulty Rogue Special Mode None Game No. 255 Rogue 255 Adventurer 0 Explorer 0 Win Type - Total 0 Types 0/0/0/0/0/0/0/0/0 Lore% 33 Gallery% 47 Achievement% 33 Wizard Run 0 Options --------- Layout 1 ASCII 0 Keyboard 0 Movement Mouse Keybinds 0 Fullscreen 1 Font 24/Smallcaps Map View 50x40 Zoom Use 0% Tactical HUD 1 Map Filters NONE Filters NONE Steam 1 RUN: dae37af1-279c-4f5c-803d-d9eadff9ab22